bitfinex/quotes_SOLUSD_20251006
["timestamp","ask_amount","ask_price","bid_price","bid_amount"]
[1759724650171,213.3,232.04,231.95,3.82250324]
[1759724650378,213.51,232.04,231.96,30.82]
[1759724650576,213.51,232.04,231.97,0.72]
[1759724650784,213.51,232.04,231.98,30.1]
[1759724650985,213.51,232.04,231.98,51.62]
[1759724651182,213.3,232.04,232.01,20.8]
[1759724651373,79.1,232.04,232.02,30.82]
[1759724651578,79.1,232.04,232.02,30.1]
[1759724651792,79.1,232.04,232.02,30.82]
[1759724651978,0.21,232.03,231.99,20.8]
[1759724652186,0.21,232.03,232.02,20.8]
[1759724652373,79.1,232.04,232.02,50.9]
[1759724652685,4.51992606,232.03,232.01,30.1]
[1759724652876,0.21,232.02,232.01,30.1]
[1759724653877,4.51997327,232.02,232.01,30.1]
[1759724655997,4.51997327,232.02,232.0,30.1]
[1759724656291,10.77446881,232.03,232.0,30.1]
[1759724656608,15.29425633,232.03,232.0,30.1]
[1759724656775,15.29425633,232.03,231.97,0.72]
[1759724656776,78.38,231.97,231.96,20.8]
[1759724656975,134.88,232.02,231.96,20.8]
[1759724657194,134.2,232.01,231.96,20.8]
[1759724657983,134.2,232.01,232.0,20.8]
[1759724658189,139.23015904,232.01,232.0,30.1]
[1759724662693,58.3,231.97,231.96,21.48]
[1759724662995,5.03015904,232.01,231.96,21.48]
[1759724663886,5.03015904,232.01,231.97,30.1]
[1759724664279,5.03015904,232.01,231.97,30.78]
[1759724664781,5.03015904,232.01,232.0,20.8]
[1759724664989,5.03015904,232.01,232.0,30.1]
[1759724668598,58.3,231.97,231.95,3.65650464]
[1759724668905,30.72033959,231.97,231.93,12.93131317]
[1759724669198,30.72033959,231.97,231.94,0.68]
[1759724669898,3.14067918,231.97,231.95,30.1]
[1759724670105,3.14067918,231.97,231.96,0.68]
[1759724672109,7.45158145,231.97,231.95,20.8]
[1759724672405,213.3,231.96,231.95,20.8]
[1759724672708,213.3,231.96,231.95,50.9]
[1759724673805,213.3,231.96,231.95,51.57]
[1759724674506,213.3,231.96,231.95,50.9]
[1759724674905,217.61108811,231.96,231.95,50.9]
[1759724676897,218.30108811,231.96,231.95,20.8]
[1759724677101,218.30108811,231.96,231.93,3.66236798]
[1759724677102,79.1,231.94,231.9,0.67]
[1759724677406,213.3,231.93,231.91,50.9]
[1759724677606,213.3,231.92,231.88,0.67]
[1759724677811,213.3,231.92,231.89,30.77]
[1759724677997,213.3,231.92,231.91,20.8]
[1759724678313,213.3,231.92,231.91,30.1]
[1759724678507,4.31201759,231.91,231.87,0.67]
[1759724678709,4.31201759,231.91,231.88,30.1]
[1759724678899,4.31201759,231.91,231.9,20.8]
[1759724679612,5.00201759,231.91,231.9,30.1]
[1759724680414,4.31201759,231.91,231.9,30.1]
[1759724683602,5.00201759,231.91,231.9,30.1]
[1759724685106,4.31201759,231.91,231.9,30.1]
[1759724689403,162.45851919,231.9,231.83,2.2484903]
[1759724689619,163.14851919,231.89,231.84,30.1]
[1759724689824,0.69,231.88,231.84,30.1]
[1759724690501,162.45851919,231.89,231.84,30.1]
[1759724690700,4.31276146,231.87,231.84,30.1]
[1759724691102,5.00276146,231.87,231.84,30.1]
[1759724691513,4.31276146,231.87,231.85,0.67]
[1759724691725,4.31276146,231.87,231.84,30.77]
[1759724692727,4.31257547,231.88,231.84,30.77]
[1759724692896,5.00257547,231.88,231.84,30.77]
[1759724693102,5.00257547,231.88,231.85,0.67]
[1759724693321,5.00257547,231.88,231.84,30.1]
[1759724693322,5.00257547,231.88,231.84,30.77]
[1759724694325,5.00257547,231.88,231.84,30.1]
[1759724694504,4.31257547,231.88,231.85,0.67]
[1759724694704,4.31257547,231.88,231.86,0.67]
[1759724695023,4.31257547,231.88,231.85,0.67]
[1759724695406,162.45851919,231.87,231.85,0.67]
[1759724696922,166.77129943,231.87,231.84,30.1]
[1759724697107,166.77129943,231.87,231.84,30.77]
[1759724699230,0.69,231.86,231.84,30.1]
[1759724699409,0.69,231.85,231.8,0.67]
[1759724699609,162.45851919,231.84,231.81,30.77]
[1759724700226,162.45851919,231.84,231.81,30.1]
[1759724700428,162.45851919,231.84,231.81,34.37803815]
[1759724700625,162.45851919,231.84,231.81,33.70803815]
[1759724700823,162.45851919,231.84,231.82,0.67]
[1759724702236,162.45851919,231.84,231.81,34.37803815]
[1759724702415,162.45851919,231.84,231.82,0.67]
[1759724702917,162.45851919,231.84,231.81,33.70803815]
[1759724703122,0.69,231.83,231.81,33.70803815]
[1759724703516,162.45851919,231.84,231.81,33.70803815]
[1759724703828,163.14851919,231.84,231.81,33.70803815]
[1759724704226,163.14851919,231.84,231.81,34.37803815]
[1759724704425,162.45851919,231.83,231.81,34.37803815]
[1759724705411,162.45851919,231.83,231.82,0.67]
[1759724706230,134.87885878,231.83,231.82,11.54647521]
[1759724706540,28.25851919,231.83,231.82,11.54647521]
[1759724707235,0.67885878,231.83,231.82,11.54647521]
[1759724707539,0.67885878,231.83,231.82,15.86016686]
[1759724708109,0.69,231.9,231.85,20.8]
[1759724708308,0.69,231.9,231.85,50.9]
[1759724708510,106.62033959,231.91,231.85,51.57]
[1759724708738,0.69,231.9,231.85,50.9]
[1759724708935,5.00249109,231.89,231.85,50.9]
[1759724709137,0.69,231.88,231.85,50.9]
[1759724709637,4.31249109,231.89,231.85,51.57]
[1759724709834,5.00249109,231.89,231.85,51.57]
[1759724710023,0.69,231.89,231.85,51.57]
[1759724710227,111.62250638,231.91,231.86,0.67]
[1759724710548,79.1,231.89,231.87,40.95647521]
[1759724710714,51.52033959,231.89,231.88,11.54647521]
[1759724710915,51.52033959,231.89,231.88,10.87647521]
[1759724711326,51.52033959,231.89,231.88,11.54647521]
[1759724711537,51.52033959,231.89,231.88,10.87647521]
[1759724712041,51.52033959,231.89,231.87,30.08]
[1759724712042,52.21033959,231.89,231.85,20.8]
[1759724712213,5.00257547,231.88,231.85,20.8]
[1759724712412,0.69,231.87,231.85,20.8]
[1759724712624,0.69,231.86,231.82,41.62647521]
[1759724712830,0.69,231.86,231.85,20.8]
[1759724713032,4.31257547,231.88,231.85,20.8]
[1759724713533,0.69,231.87,231.85,20.8]
[1759724713741,0.69,231.86,231.85,20.8]
[1759724714118,5.00294746,231.86,231.85,20.8]
[1759724714319,5.00294746,231.86,231.82,40.95647521]
[1759724714537,62.30147985,231.89,231.82,40.95647521]
[1759724714720,0.69,231.88,231.85,20.8]
[1759724714921,0.69,231.87,231.85,20.8]
[1759724716042,62.30147985,231.89,231.85,20.8]
[1759724716343,162.45325465,231.88,231.85,20.8]
[1759724716516,163.14325465,231.88,231.85,20.8]
[1759724717334,162.45325465,231.88,231.85,21.47]
[1759724717538,163.14325465,231.88,231.85,20.8]
[1759724720323,162.45325465,231.88,231.85,20.8]
[1759724720643,0.68,231.87,231.85,20.8]
[1759724720840,4.99294746,231.86,231.85,20.8]
[1759724724844,4.31294746,231.86,231.85,20.8]
[1759724725150,4.31276146,231.87,231.85,20.8]
[1759724725445,30.08,231.88,231.85,21.48]
[1759724725752,0.68,231.88,231.85,20.8]
[1759724726450,4.31238949,231.89,231.85,20.8]
[1759724726746,4.99238949,231.89,231.86,0.68]
[1759724727141,4.99238949,231.89,231.85,20.8]
[1759724727343,4.99238949,231.89,231.85,21.48]
[1759724728152,79.78,231.88,231.85,20.8]
[1759724728363,0.68,231.87,231.85,20.8]
[1759724729137,79.1,231.88,231.85,20.8]
[1759724729340,79.78,231.88,231.85,21.48]
[1759724730435,84.09271903,231.88,231.85,20.8]
[1759724730837,0.68,231.87,231.85,20.8]
[1759724731031,83.41271903,231.88,231.85,20.8]
[1759724731255,84.09271903,231.88,231.85,20.8]
[1759724731632,4.99283873,231.87,231.85,20.8]
[1759724733041,4.31283873,231.87,231.85,20.8]
[1759724733951,4.97283873,231.87,231.85,20.8]
[1759724734148,79.1,231.86,231.85,20.8]
[1759724734659,83.41294746,231.86,231.85,20.8]
[1759724737866,84.07294746,231.86,231.85,20.8]
[1759724738665,79.1,231.82,231.79,0.7]
[1759724738967,79.1,231.81,231.79,51.58]
[1759724739267,79.1,231.8,231.79,24.46487023]
[1759724739783,83.41406384,231.8,231.79,20.8]
[1759724741661,84.07406384,231.8,231.79,20.8]
[1759724743058,4.97406384,231.8,231.79,20.8]
[1759724744771,4.31406384,231.8,231.79,20.8]
[1759724745957,4.97406384,231.8,231.79,20.8]
[1759724747379,0.66,231.8,231.79,20.8]
[1759724747682,4.97406384,231.8,231.79,20.8]
[1759724748672,5.02387774,231.81,231.8,20.8]
[1759724748971,79.1,231.79,231.78,20.8]
[1759724753389,83.41424996,231.79,231.78,20.8]
[1759724754866,4.31424996,231.79,231.78,20.8]
[1759724756871,139.22408521,231.8,231.78,20.8]
[1759724757068,134.2,231.8,231.79,0.7]
[1759724764086,20.0,231.94,231.79,0.7]
[1759724764087,0.71,231.9,231.87,20.8]
[1759724764291,0.71,231.9,231.87,50.86]
[1759724765688,4.31164575,231.93,231.87,51.56]
[1759724765889,0.71,231.92,231.87,50.86]
[1759724766092,0.71,231.91,231.87,50.86]
[1759724766285,0.71,231.9,231.87,50.86]
[1759724766471,0.71,231.89,231.87,20.8]
[1759724766797,0.71,231.88,231.84,30.06]
[1759724766999,0.71,231.87,231.84,30.06]
[1759724767395,5.02294539,231.87,231.85,20.8]
[1759724767702,0.71,231.86,231.82,30.76]
[1759724767903,0.71,231.86,231.82,30.06]
[1759724768082,0.71,231.86,231.82,30.76]
[1759724769198,4.31238949,231.89,231.82,30.06]
[1759724769499,0.71,231.88,231.83,0.7]
[1759724769685,0.71,231.88,231.82,30.06]
[1759724769882,5.02238949,231.89,231.84,0.7]
[1759724770206,0.71,231.88,231.84,0.7]
[1759724770586,0.71,231.87,231.82,30.06]
[1759724770801,0.71,231.86,231.82,30.06]
[1759724771105,0.71,231.85,231.82,30.06]
[1759724771282,0.71,231.85,231.81,0.7]
[1759724771283,214.01,231.84,231.79,30.06]
[1759724771596,0.71,231.83,231.79,30.76]
[1759724772600,5.02352527,231.83,231.79,30.76]
[1759724772802,0.71,231.83,231.79,30.76]
[1759724773004,217.6133709,231.84,231.8,0.7]
[1759724773178,218.3233709,231.84,231.8,0.7]
[1759724773374,0.71,231.83,231.79,30.06]
[1759724773579,0.71,231.83,231.79,30.76]
[1759724774384,218.3233709,231.84,231.79,30.76]
[1759724774585,218.3233709,231.84,231.8,0.7]
[1759724775496,218.3233709,231.84,231.79,30.06]
[1759724775497,0.71,231.83,231.79,30.06]
[1759724775683,213.3,231.82,231.79,30.76]
[1759724778201,217.61377742,231.82,231.79,30.06]
[1759724778409,0.69,231.81,231.79,30.06]
[1759724778590,213.99,231.8,231.79,30.06]
[1759724779307,213.3,231.8,231.79,30.06]
[1759724780204,79.1,231.79,231.77,41.59647521]
[1759724780396,79.1,231.79,231.78,0.66]
[1759724780787,79.1,231.79,231.77,40.93647521]
[1759724780987,79.1,231.79,231.77,41.59647521]
[1759724781991,79.1,231.79,231.77,30.72]
[1759724782599,79.1,231.79,231.77,30.06]
[1759724782801,83.41425638,231.79,231.77,30.06]
[1759724783289,79.1,231.78,231.77,30.06]
[1759724783493,79.79,231.78,231.76,3.88726356]
[1759724783712,79.1,231.78,231.76,3.88726356]
[1759724784809,79.1,231.78,231.77,0.66]
[1759724784992,79.1,231.78,231.77,30.72]
[1759724786302,79.1,231.78,231.77,30.06]
[1759724786902,79.1,231.78,231.77,30.72]
[1759724787108,79.1,231.78,231.77,41.59647521]
[1759724789115,76.71898136,231.78,231.77,41.59647521]
[1759724793516,134.2,231.8,231.77,41.59647521]
[1759724793825,134.2,231.8,231.78,0.67]
[1759724794120,134.2,231.8,231.79,30.04]
[1759724794321,106.62033959,231.8,231.79,30.71]
[1759724794622,21.5589093,231.93,231.79,30.71]
[1759724794623,0.67,231.9,231.8,10.87647521]
[1759724794921,79.1,231.92,231.85,31.67647521]
[1759724795122,0.67,231.93,231.87,10.87647521]
[1759724795427,0.67,231.93,231.89,10.87647521]
[1759724795598,0.67,231.93,231.9,30.04]
[1759724796017,10.77659943,231.99,231.9,30.71]
[1759724796018,0.67,231.95,231.9,30.71]
[1759724796525,0.67,231.94,231.9,30.04]
[1759724796730,0.67,231.93,231.9,30.04]
[1759724796941,0.67,231.92,231.88,30.04]
[1759724797143,0.67,231.91,231.88,30.04]
[1759724797435,0.67,231.9,231.88,30.04]
[1759724798009,30.04,231.95,231.88,30.04]
[1759724798210,15.09076013,231.93,231.86,30.04]
[1759724798628,0.67,231.92,231.86,30.04]
[1759724798944,0.67,231.91,231.86,30.04]
[1759724799333,4.31238949,231.89,231.86,30.04]
[1759724799528,0.67,231.88,231.86,30.04]
[1759724802940,4.31244121,231.89,231.86,30.04]
[1759724803237,0.67,231.88,231.86,30.04]
[1759724803431,4.31244121,231.89,231.88,20.8]
[1759724803736,4.98244121,231.89,231.88,20.8]
[1759724806251,58.3,231.87,231.86,30.04]
[1759724806451,58.97,231.87,231.86,30.04]
[1759724806956,58.97,231.87,231.83,10.87647521]
[1759724807126,58.97,231.87,231.84,30.04]
[1759724808038,58.3,231.87,231.85,0.71]
[1759724808241,58.3,231.87,231.86,20.8]
[1759724810435,58.3,231.87,231.84,30.75]
[1759724811349,58.3,231.86,231.84,30.75]
[1759724817434,58.3,231.85,231.84,0.71]
[1759724817633,58.3,231.85,231.84,30.75]
[1759724820662,58.3,231.85,231.84,41.62647521]
[1759724820861,58.3,231.85,231.84,45.93979474]
[1759724821456,58.3,231.85,231.84,41.62647521]
[1759724823150,134.92,231.88,231.84,41.62647521]
[1759724823342,134.92,231.88,231.85,10.87647521]
[1759724823852,134.2,231.88,231.86,30.02]
[1759724824159,134.2,231.88,231.87,0.71]
[1759724824358,31.57846961,231.95,231.87,11.58647521]
[1759724824359,79.1,231.92,231.87,11.58647521]
[1759724824567,79.1,231.92,231.88,11.58647521]
[1759724824754,79.1,231.92,231.89,30.73]
[1759724824951,79.1,231.92,231.91,10.87647521]
[1759724825160,79.1,231.92,231.91,40.89647521]
[1759724828266,79.82,231.92,231.91,30.02]
[1759724828481,79.1,231.92,231.91,30.02]
[1759724830758,0.72,231.96,231.91,30.73]
[1759724831086,79.1,231.97,231.92,11.58647521]
[1759724831257,79.82,231.97,231.93,30.73]
[1759724831576,0.72,231.96,231.93,30.73]
[1759724831772,79.1,231.97,231.93,30.73]
[1759724831964,79.82,231.97,231.93,30.73]
[1759724832979,79.1,231.97,231.95,10.87647521]
[1759724833164,79.1,231.97,231.96,30.02]
[1759724835982,79.82,231.97,231.96,30.02]
[1759724836283,79.1,231.97,231.96,30.02]
[1759724839362,79.1,231.97,231.96,30.73]
[1759724839780,79.1,231.97,231.96,30.02]
[1759724844000,0.68,231.99,231.96,30.02]
[1759724845694,0.68,231.99,231.96,30.73]
[1759724846401,0.68,231.99,231.96,30.02]
[1759724847112,134.2,232.0,231.96,30.02]
[1759724847277,0.68,231.99,231.96,30.73]
[1759724847792,0.68,231.99,231.96,30.02]
[1759724847990,134.2,232.0,231.96,30.73]
[1759724848206,134.88,232.0,231.96,30.73]
[1759724848700,134.2,232.0,231.96,30.02]
[1759724848904,134.2,232.0,231.98,10.87647521]
[1759724849085,134.2,232.0,231.99,30.0]
[1759724851912,134.88,232.0,231.99,30.0]
[1759724852712,134.2,232.0,231.99,30.0]
[1759724854184,134.9,232.0,231.99,30.0]
[1759724855795,134.2,232.0,231.99,30.0]
[1759724856005,134.9,232.0,231.99,30.0]
[1759724856203,134.2,232.0,231.99,40.87647521]
[1759724857803,134.9,232.0,231.99,40.87647521]
[1759724858108,134.2,232.0,231.99,40.87647521]
[1759724858487,134.2,232.0,231.99,41.54647521]
[1759724858985,134.2,232.0,231.99,40.87647521]
[1759724859195,134.2,232.0,231.99,41.54647521]
[1759724859392,0.9,232.05,231.99,45.85700583]
[1759724859718,0.2,232.05,232.01,10.87647521]
[1759724859896,0.2,232.05,232.03,10.87647521]
[1759724860101,0.9,232.05,232.04,30.0]
[1759724860908,0.9,232.05,232.04,33.4921816]
[1759724861085,0.9,232.05,232.04,30.0]
[1759724862410,0.9,232.05,231.99,3.60895493]
[1759724862710,0.9,232.05,232.0,41.54647521]
[1759724862914,0.9,232.05,232.02,10.87647521]
[1759724863093,0.7,232.04,232.02,40.87647521]
[1759724866101,0.2,232.05,232.02,40.87647521]
[1759724866311,0.9,232.05,232.02,40.87647521]
[1759724866511,0.9,232.05,232.02,41.54647521]
[1759724866698,0.9,232.05,232.02,40.87647521]
[1759724867225,5.20942182,232.05,232.02,40.87647521]
[1759724868624,5.20942182,232.05,232.03,30.0]
[1759724871689,0.2,232.05,232.04,11.59647521]
[1759724872090,0.2,232.05,232.04,10.87647521]
[1759724875796,0.2,232.05,232.04,11.59647521]
[1759724876410,0.2,232.05,232.04,10.87647521]
[1759724878219,0.91,232.05,232.03,20.8]
[1759724878412,0.91,232.05,232.04,29.98]
[1759724878600,0.2,232.05,232.04,29.98]
[1759724879805,0.91,232.05,232.04,29.98]
[1759724879999,79.1,232.04,232.0,4.30933094]
[1759724880203,0.71,232.03,231.92,65.90992169]
[1759724880416,0.71,232.02,231.93,30.74]
[1759724880618,0.71,232.01,231.94,11.59647521]
[1759724880825,0.71,232.01,231.96,10.87647521]
[1759724881115,0.71,232.01,231.97,30.02]
[1759724881313,0.71,232.01,231.97,30.74]
[1759724881702,58.23439191,232.05,231.97,30.02]
[1759724881902,0.71,232.04,231.97,30.02]
[1759724882109,0.71,232.03,231.97,30.02]
[1759724882306,0.71,232.02,231.97,30.02]
[1759724882512,45.30307874,232.05,231.97,30.74]
[1759724882513,0.71,232.01,231.97,30.74]
[1759724882819,0.71,232.04,231.98,10.87647521]
[1759724883038,0.71,232.04,231.99,0.72]
[1759724883206,0.71,232.04,232.0,0.72]
[1759724884028,5.01972505,232.04,232.0,0.72]
[1759724884201,4.30972505,232.04,232.0,0.72]
[1759724884404,0.71,232.03,231.99,30.02]
[1759724884624,0.71,232.03,231.99,30.74]
[1759724885233,0.2,232.05,232.0,0.72]
[1759724885526,0.2,232.05,232.01,30.02]
[1759724885731,0.2,232.05,232.02,0.72]
[1759724886028,213.3,232.04,232.02,0.72]
[1759724886221,213.3,232.04,232.01,30.02]
[1759724886424,213.3,232.04,232.01,30.74]
[1759724887336,79.1,232.03,232.02,11.59647521]
[1759724887637,79.1,232.03,232.02,10.87647521]
[1759724888122,79.1,232.03,232.02,11.59647521]
[1759724890220,79.1,232.03,232.02,10.87647521]
[1759724891727,0.2,232.05,232.02,11.59647521]
[1759724891929,0.2,232.05,232.03,30.72]
[1759724892329,0.2,232.05,232.03,30.0]
[1759724893657,0.2,232.05,232.03,30.72]
[1759724893830,0.2,232.05,232.03,30.0]
[1759724895627,0.2,232.05,232.04,0.72]
[1759724896332,0.2,232.05,232.03,30.0]
[1759724896544,0.2,232.05,232.04,11.59647521]
[1759724899753,0.2,232.05,232.04,41.57647521]
[1759724902562,0.2,232.05,232.04,43.29975892]
[1759724904349,0.2,232.05,232.04,47.60936071]
[1759724906853,0.2,232.05,232.04,43.29975892]
[1759724910055,0.2,232.05,232.04,42.57975892]
[1759724911658,0.2,232.05,232.04,43.26975892]
[1759724911868,0.85,232.05,232.04,33.39975892]
[1759724912064,0.85,232.05,232.04,40.85647521]
[1759724912276,0.85,232.05,231.99,4.40830625]
[1759724912277,5.15941607,232.05,231.99,4.40830625]
[1759724912562,0.65,232.04,232.0,29.98]
[1759724912770,0.2,232.05,232.0,29.98]
[1759724912771,0.65,232.03,232.01,10.87647521]
[1759724912971,0.65,232.03,232.02,40.87647521]
[1759724914575,0.92,232.05,232.03,10.87647521]
[1759724914872,0.72,232.04,232.03,10.87647521]
[1759724920254,0.2,232.05,232.02,30.0]
[1759724920589,79.1,232.03,231.98,10.87647521]
[1759724920773,83.40995951,232.03,231.99,29.98]
[1759724921078,0.72,232.02,231.99,29.98]
[1759724921253,0.72,232.01,231.99,29.98]
[1759724921764,0.72,232.0,231.99,40.85647521]
[1759724925282,5.03034482,232.0,231.97,10.87647521]
[1759724925476,0.72,231.99,231.98,29.98]
[1759724927090,0.72,232.01,231.98,29.98]
[1759724927669,0.69,232.0,231.98,29.98]
[1759724927870,0.69,231.99,231.98,29.98]
[1759724930598,79.1,232.03,231.97,40.85647521]
[1759724930779,0.69,232.02,231.97,41.53647521]
[1759724930979,0.69,232.01,231.97,41.53647521]
[1759724931288,0.69,232.0,231.97,41.53647521]
[1759724932196,79.1,232.03,231.97,41.53647521]
[1759724932197,79.1,232.03,231.99,10.87647521]
[1759724932386,79.1,232.03,232.0,30.66]
[1759724932577,79.1,232.03,232.01,0.68]
[1759724933493,79.1,232.03,232.01,10.87647521]
[1759724934794,79.79,232.03,232.01,10.87647521]
[1759724937382,79.1,232.03,232.01,10.87647521]
[1759724938105,79.79,232.03,232.01,10.87647521]
[1759724939197,79.1,232.02,232.01,10.87647521]
[1759724940789,0.2,232.05,232.01,11.55647521]
[1759724940993,0.2,232.05,232.03,10.87647521]
[1759724941292,0.2,232.05,232.04,40.85647521]
[1759724942592,0.2,232.05,232.04,41.53647521]
[1759724942911,0.2,232.05,232.04,40.85647521]
[1759724944006,0.79,232.11,232.05,31.67647521]
[1759724944305,0.79,232.11,232.07,10.87647521]
[1759724944306,0.1,232.11,232.07,10.87647521]
[1759724944507,0.1,232.11,232.09,10.87647521]
[1759724944707,0.1,232.11,232.09,40.85647521]
[1759724944907,0.1,232.11,232.09,41.53647521]
[1759724945406,0.1,232.11,232.09,40.85647521]
[1759724945706,0.1,232.11,232.09,41.53647521]
[1759724946687,0.1,232.11,232.09,40.85647521]
[1759724946898,0.1,232.11,232.1,11.55647521]
[1759724949814,0.1,232.11,232.1,10.87647521]
[1759724955228,0.1,232.11,232.1,11.55647521]
[1759724955821,0.79,232.11,232.1,10.87647521]
[1759724956119,0.79,232.11,232.1,40.85647521]
[1759724956695,0.1,232.11,232.1,40.85647521]
[1759724960519,0.77,232.11,232.1,40.85647521]
[1759724961422,0.77,232.11,232.1,29.98]
[1759724961611,0.77,232.11,232.09,29.98]
[1759724964126,0.1,232.11,232.05,20.8]
[1759724964340,0.1,232.11,232.06,40.85647521]
[1759724964341,0.67,232.1,232.06,40.85647521]
[1759724964930,0.67,232.1,232.06,41.53647521]
[1759724965730,4.30851647,232.1,232.06,40.85647521]
[1759724965940,0.67,232.09,232.05,20.8]
[1759724966110,0.67,232.08,232.05,20.8]
[1759724966446,0.67,232.07,232.05,20.8]
[1759724969821,0.67,232.08,232.05,20.8]
[1759724971752,0.67,232.07,232.03,41.53647521]
[1759724973024,0.1,232.11,231.99,2.24708078]
[1759724973025,0.67,232.06,231.99,2.24708078]
[1759724973341,0.67,232.05,232.0,40.85647521]
[1759724973544,0.68,232.04,232.0,40.85647521]
[1759724973748,15.08165639,232.07,232.0,40.85647521]
[1759724973954,0.68,232.03,232.0,29.98]
[1759724974247,0.68,232.02,231.97,10.87647521]
[1759724974545,0.68,232.01,231.97,41.56647521]
[1759724977836,4.9902539,232.01,231.97,41.56647521]
[1759724980863,79.1,232.0,231.98,0.71]
[1759724981069,79.1,231.99,231.98,0.71]
[1759724981237,79.1,231.99,231.97,40.85647521]
[1759724981562,79.1,231.99,231.97,41.56647521]
[1759724982935,79.1,231.99,231.98,11.58647521]
[1759724992476,79.1,231.99,231.98,10.87647521]
[1759724994177,79.1,231.99,231.98,11.58647521]
[1759724994477,79.1,231.99,231.98,15.89719165]
[1759724994871,79.1,231.99,231.98,28.82516131]
[1759724995256,0.68,232.07,232.06,20.8]
[1759725001878,4.98904468,232.07,232.06,20.8]
[1759725004283,71.25646573,232.1,232.06,20.8]
[1759725004284,0.68,232.09,232.06,20.8]
[1759725004487,41.95646573,232.08,232.06,20.8]
[1759725006075,0.68,232.07,232.06,20.8]
[1759725006785,0.68,232.07,231.98,0.71]
[1759725007079,71.25646573,232.06,231.99,40.85647521]
[1759725007287,4.98941607,232.05,232.02,20.8]
[1759725007471,0.68,232.04,232.02,20.8]
[1759725007674,0.68,232.03,232.02,20.8]
[1759725008867,4.30941607,232.05,232.02,20.8]
[1759725009681,4.98941607,232.05,232.02,20.8]
[1759725009867,4.98941607,232.05,232.02,21.51]
[1759725010183,4.30941607,232.05,232.02,21.51]
[1759725010487,41.27646573,232.04,232.02,21.51]
[1759725010984,0.68,232.09,232.03,0.71]
[1759725011187,0.68,232.09,232.07,20.8]
[1759725012293,0.78,232.11,232.08,20.8]
[1759725012587,0.1,232.11,232.08,21.51]
[1759725013784,0.1,232.11,232.09,0.71]
[1759725013969,0.1,232.11,232.1,21.51]
[1759725016191,0.1,232.11,232.1,20.8]
[1759725019274,0.1,232.11,232.1,30.7]
[1759725020592,0.1,232.11,232.07,20.8]
[1759725020885,0.1,232.11,232.1,20.8]
[1759725021090,0.1,232.11,232.1,21.52]
[1759725021288,0.1,232.11,232.1,32.39647521]
[1759725024296,0.1,232.11,232.1,61.63647521]
[1759725026293,5.12830209,232.11,232.05,10.87647521]
[1759725026477,0.72,232.1,232.06,29.96]
[1759725026675,4.40830209,232.11,232.09,20.8]
[1759725027390,0.72,232.1,232.09,20.8]
[1759725027593,5.02848772,232.1,232.09,20.8]